fUSD/lending_fUSD_20260607
["ID","MTS","AMOUNT","RATE_DAILY","PERIOD"]
[424365874,1780788643000,-500.0,0.00013974,2]
[424365863,1780788643000,-500.0,0.00013974,2]
[424365861,1780788643000,-500.0,0.00013974,2]
[424365864,1780788643000,-500.0,0.00013974,2]
[424365865,1780788643000,-500.0,0.00013974,2]
[424365866,1780788643000,-500.0,0.00013974,2]
[424365869,1780788643000,-500.0,0.00013974,2]
[424365870,1780788643000,-500.0,0.00013974,2]
[424365855,1780788643000,-500.0,0.00013974,2]
[424365904,1780788643000,-345.871527,0.00014062,2]
[424365905,1780788643000,-442.77574995,0.00014063,2]
[424365907,1780788643000,-150.0,0.00014073,2]
[424365938,1780788643000,-166.66,0.0001419,2]
[424365941,1780788643000,-23204.06766484,0.00014199,2]
[424365943,1780788643000,-150.0,0.000142,2]
[424365940,1780788643000,-150.0,0.00014194,2]
[424365942,1780788643000,-442.77574995,0.00014199,2]
[424365947,1780788643000,-442.77574995,0.00014214,2]
[424365945,1780788643000,-1839.60337747,0.0001421,7]
[424365944,1780788643000,-150.0,0.00014207,2]
[424365948,1780788643000,-150.0,0.00014216,2]
[424365946,1780788643000,-152.0,0.00014214,7]
[424365952,1780788643000,-150.0,0.00014237,2]
[424365951,1780788643000,-442.77574995,0.00014229,2]
[424365953,1780788643000,-150.0,0.00014237,2]
[424365963,1780788643000,-152.0,0.00014261,7]
[424365955,1780788643000,-442.77574995,0.00014245,2]
[424365954,1780788643000,-152.0,0.00014243,7]
[424365956,1780788643000,-166.66,0.00014247,2]
[424365961,1780788643000,-500.0,0.00014259,2]
[424365958,1780788643000,-150.0,0.00014255,2]
[424365960,1780788643000,-350.0,0.00014259,2]
[424365957,1780788643000,-150.0,0.00014254,2]
[424365959,1780788643000,-150.0,0.00014258,2]
[424365964,1780788643000,-150.0,0.00014267,2]
[424365967,1780788643000,-442.77574995,0.00014275,2]
[424365966,1780788643000,-150.0,0.00014274,2]
[424365969,1780788643000,-150.0,0.00014281,2]
[424365968,1780788643000,-150.0,0.0001428,2]
[424365965,1780788643000,-350.0,0.0001427,2]
[424365906,1780788643000,-150.0,0.00014066,2]
[424365950,1780788643000,-150.0,0.0001422,2]
[424365949,1780788643000,-150.0,0.00014219,2]
[424365962,1780788643000,-442.77574995,0.0001426,2]
[424365929,1780788643000,-150.0,0.00014151,2]
[424365939,1780788643000,-150.0,0.00014193,2]
[424365908,1780788643000,-442.77574995,0.00014078,2]
[424365909,1780788643000,-150.0,0.0001408,2]
[424365911,1780788643000,-150.0,0.00014087,2]
[424365910,1780788643000,-150.0,0.00014087,2]
[424365914,1780788643000,-442.77574995,0.00014093,2]
[424365917,1780788643000,-150.0,0.00014109,2]
[424365916,1780788643000,-442.77574995,0.00014108,2]
[424365924,1780788643000,-214.764938,0.00014132,2]
[424365925,1780788643000,-442.77574995,0.00014139,2]
[424365918,1780788643000,-150.0,0.00014109,2]
[424365915,1780788643000,-150.0,0.00014105,2]
[424365920,1780788643000,-150.0,0.00014115,2]
[424365913,1780788643000,-150.0,0.00014091,2]
[424365923,1780788643000,-150.0,0.0001413,2]
[424365970,1780788643000,-35301.46029499,0.00014283,2]
[424365919,1780788643000,-166.66,0.0001411,2]
[424365921,1780788643000,-442.77574995,0.00014123,2]
[424365928,1780788643000,-150.0,0.0001415,2]
[424365936,1780788643000,-442.77574995,0.00014184,2]
[424365935,1780788643000,-150.0,0.00014182,2]
[424365931,1780788643000,-442.77574995,0.00014154,2]
[424365934,1780788643000,-150.0,0.00014173,2]
[424365933,1780788643000,-442.77574995,0.00014169,2]
[424365930,1780788643000,-150.0,0.00014154,2]
[424365926,1780788643000,-150.0,0.00014146,2]
[424365927,1780788643000,-150.0,0.00014147,2]
[424365937,1780788643000,-150.0,0.00014185,2]
[424365922,1780788643000,-150.0,0.00014127,2]
[424365932,1780788643000,-150.0,0.00014164,2]
[424366011,1780788644000,-442.77574995,0.00014426,2]
[424366010,1780788644000,-150.0,0.0001442,2]
[424366007,1780788644000,-150.0,0.00014401,2]
[424366009,1780788644000,-442.77574995,0.00014411,2]
[424366004,1780788644000,-150.0,0.00014387,2]
[424366012,1780788644000,-150.0,0.00014429,2]
[424366014,1780788644000,-150.0,0.00014438,2]
[424366008,1780788644000,-150.0,0.00014408,2]
[424366005,1780788644000,-150.0,0.00014394,2]
[424366006,1780788644000,-442.77574995,0.00014396,2]
[424366015,1780788644000,-442.77574995,0.00014441,2]
[424366017,1780788644000,-150.0,0.00014451,2]
[424366013,1780788644000,-150.0,0.0001443,2]
[424366018,1780788644000,-150.0,0.00014456,2]
[424366021,1780788644000,-150.0,0.00014464,2]
[424366020,1780788644000,-150.0,0.00014457,2]
[424366019,1780788644000,-442.77574995,0.00014456,2]
[424366016,1780788644000,-150.0,0.00014447,2]
[424366023,1780788644000,-150.0,0.00014472,2]
[424366022,1780788644000,-442.77574995,0.00014472,2]
[424366024,1780788644000,-150.0,0.00014475,2]
[424366025,1780788644000,-150.0,0.00014487,2]
[424366026,1780788644000,-442.77574995,0.00014487,2]
[424366028,1780788644000,-150.0,0.00014494,2]
[424366031,1780788644000,-442.77574995,0.00014502,2]
[424366034,1780788644000,-150.0,0.00014515,2]
[424366029,1780788644000,-150.0,0.00014498,2]
[424365998,1780788644000,-150.0,0.00014369,2]
[424366027,1780788644000,-150.0,0.00014493,2]
[424365996,1780788644000,-150.0,0.00014365,2]
[424365973,1780788644000,-150.0,0.00014292,2]
[424365994,1780788644000,-150.0,0.00014359,2]
[424366032,1780788644000,-150.0,0.00014507,2]
[424365974,1780788644000,-350.0,0.00014297,2]
[424365972,1780788644000,-442.77574995,0.0001429,2]
[424365971,1780788644000,-150.0,0.00014289,2]
[424365975,1780788644000,-150.0,0.00014301,2]
[424365976,1780788644000,-442.77574995,0.00014305,2]
[424365978,1780788644000,-150.0,0.0001432,2]
[424365979,1780788644000,-442.77574995,0.0001432,2]
[424365977,1780788644000,-150.0,0.0001431,2]
[424365988,1780788644000,-500.0,0.00014349,2]
[424365981,1780788644000,-150.0,0.00014324,2]
[424365989,1780788644000,-500.0,0.00014349,2]
[424365985,1780788644000,-150.0,0.00014344,2]
[424365984,1780788644000,-442.77574995,0.00014335,2]
[424365983,1780788644000,-150.0,0.00014328,2]
[424365986,1780788644000,-150.0,0.00014347,2]
[424365980,1780788644000,-150.0,0.00014323,2]
[424365982,1780788644000,-150.0,0.00014327,2]
[424365987,1780788644000,-500.0,0.00014349,2]
[424365991,1780788644000,-500.0,0.00014349,2]
[424365999,1780788644000,-442.77574995,0.00014381,2]
[424366000,1780788644000,-150.0,0.00014383,2]
[424366001,1780788644000,-166.66,0.00014384,2]
[424365992,1780788644000,-500.0,0.00014349,2]
[424365990,1780788644000,-500.0,0.00014349,2]
[424366003,1780788644000,-150.0,0.00014387,2]
[424365997,1780788644000,-442.77574995,0.00014366,2]
[424366002,1780788644000,-150.0,0.00014387,2]
[424365993,1780788644000,-442.77574995,0.00014351,2]
[424365995,1780788644000,-150.0,0.00014365,2]
[424366030,1780788644000,-23204.06766484,0.00014499,2]
[424366039,1780788644000,-150.0,0.00014533,2]
[424366035,1780788644000,-442.77574995,0.00014517,2]
[424366079,1780788644000,-150.0,0.00014687,2]
[424366072,1780788644000,-150.0,0.00014665,2]
[424366067,1780788644000,-150.0,0.00014639,2]
[424366071,1780788644000,-150.0,0.00014657,2]
[424366073,1780788644000,-442.77574995,0.00014668,2]
[424366076,1780788644000,-150.0,0.00014676,2]
[424366074,1780788644000,-154.82,0.0001467,2]
[424366070,1780788644000,-442.77574995,0.00014653,2]
[424366077,1780788644000,-442.77574995,0.00014684,2]
[424366075,1780788644000,-150.0,0.00014673,2]
[424366080,1780788644000,-150.0,0.00014687,2]
[424366082,1780788644000,-442.77574995,0.00014699,2]
[424366083,1780788644000,-400.0,0.000147,5]
[424366084,1780788644000,-150.0,0.00014707,2]
[424366088,1780788644000,-150.0,0.00014722,2]
[424366089,1780788644000,-442.77574995,0.00014729,2]
[424366086,1780788644000,-150.0,0.00014712,2]
[424366085,1780788644000,-150.0,0.00014708,2]
[424366087,1780788644000,-442.77574995,0.00014714,2]
[424366090,1780788644000,-150.0,0.00014729,2]
[424366081,1780788644000,-150.0,0.00014694,2]
[424366092,1780788644000,-150.0,0.00014742,2]
[424366091,1780788644000,-150.0,0.0001473,2]
[424366093,1780788644000,-442.77574995,0.00014744,2]
[424366095,1780788644000,-150.0,0.00014747,2]
[424366094,1780788644000,-350.0,0.00014745,2]
[424366096,1780788644000,-150.0,0.00014749,2]
[424366097,1780788644000,-150.0,0.00014751,2]
[424366098,1780788644000,-442.77574995,0.00014759,2]
[424366078,1780788644000,-150.0,0.00014687,2]
[424366069,1780788644000,-150.0,0.00014653,2]
[424366099,1780788644000,-150.0,0.00014767,2]
[424366065,1780788644000,-150.0,0.00014638,2]
[424366068,1780788644000,-150.0,0.00014644,2]
[424366037,1780788644000,-442.77574995,0.00014532,2]
[424366038,1780788644000,-500.0,0.00014533,2]
[424366036,1780788644000,-150.0,0.00014529,2]
[424366052,1780788644000,-35301.46029499,0.00014592,2]
[424366041,1780788644000,-150.0,0.00014546,2]
[424366051,1780788644000,-150.0,0.00014584,2]
[424366043,1780788644000,-150.0,0.00014548,2]
[424366042,1780788644000,-442.77574995,0.00014547,2]
[424366047,1780788644000,-150.0,0.00014567,2]
[424366045,1780788644000,-442.77574995,0.00014562,2]
[424366044,1780788644000,-150.0,0.00014558,2]
[424366040,1780788644000,-150.0,0.00014537,2]
[424366046,1780788644000,-150.0,0.00014566,2]
[424366048,1780788644000,-150.0,0.00014568,2]
[424366033,1780788644000,-150.0,0.00014511,2]
[424366049,1780788644000,-442.77574995,0.00014578,2]
[424366050,1780788644000,-150.0,0.0001458,2]
[424366062,1780788644000,-442.77574995,0.00014623,2]
[424366060,1780788644000,-150.0,0.00014621,2]
[424366066,1780788644000,-442.77574995,0.00014638,2]
[424366064,1780788644000,-150.0,0.00014634,2]
[424366063,1780788644000,-150.0,0.00014627,2]
[424366054,1780788644000,-400.0,0.000146,5]
[424366057,1780788644000,-150.0,0.00014603,2]
[424366061,1780788644000,-150.0,0.00014622,2]
[424366058,1780788644000,-442.77574995,0.00014608,2]
[424366056,1780788644000,-150.0,0.00014603,2]
[424366055,1780788644000,-150.0,0.00014601,2]
[424366053,1780788644000,-442.77574995,0.00014593,2]
[424366059,1780788644000,-166.66,0.00014616,2]
[424366142,1780788645000,-25000.0,0.000149,3]
[424366143,1780788645000,-400.0,0.000149,5]
[424366140,1780788645000,-591.29780845,0.000149,2]
[424366144,1780788645000,-5331.51849141,0.000149,2]
[424366134,1780788645000,-150.0,0.00014895,2]
[424366133,1780788645000,-2838.31,0.0001489,2]
[424366135,1780788645000,-442.77574995,0.00014895,2]
[424366139,1780788645000,-10756.24887527,0.000149,2]
[424366145,1780788645000,-1634.36033364,0.000149,2]
[424366137,1780788645000,-3147.943,0.00014899,2]
[424366136,1780788645000,-150.0,0.00014898,2]
[424366138,1780788645000,-10000.0,0.00014899,2]
[424366141,1780788645000,-35301.46029499,0.000149,2]
[424366149,1780788645000,-150.0,0.00014913,2]
[424366157,1780788645000,-442.77574995,0.00014941,2]
[424366159,1780788645000,-150.0,0.0001495,2]
[424366158,1780788645000,-150.0,0.00014943,2]
[424366146,1780788645000,-150.0,0.00014901,2]
[424366126,1780788645000,-442.77574995,0.00014865,2]
[424366154,1780788645000,-150.0,0.00014926,2]
[424366152,1780788645000,-150.0,0.00014922,2]
[424366148,1780788645000,-442.77574995,0.00014911,2]
[424366151,1780788645000,-1500.0,0.00014918,2]
[424366150,1780788645000,-150.0,0.00014917,2]
[424366155,1780788645000,-350.0,0.00014928,2]
[424366153,1780788645000,-442.77574995,0.00014926,2]
[424366156,1780788645000,-150.0,0.00014931,2]
[424366161,1780788645000,-442.77574995,0.00014956,2]
[424366147,1780788645000,-291.49330483,0.00014908,2]
[424366128,1780788645000,-557.21,0.00014873,2]
[424366123,1780788645000,-442.77574995,0.0001485,2]
[424366127,1780788645000,-150.0,0.00014866,2]
[424366160,1780788645000,-150.0,0.00014951,2]
[424366106,1780788645000,-23204.06766484,0.000148,2]
[424366105,1780788645000,-150.0,0.00014794,2]
[424366102,1780788645000,-150.0,0.00014777,2]
[424366103,1780788645000,-150.0,0.00014785,2]
[424366101,1780788645000,-442.77574995,0.00014774,2]
[424366100,1780788645000,-150.0,0.00014772,2]
[424366104,1780788645000,-442.77574995,0.0001479,2]
[424366118,1780788645000,-150.0,0.00014822,2]
[424366112,1780788645000,-150.0,0.0001481,2]
[424366107,1780788645000,-400.0,0.000148,5]
[424366108,1780788645000,-150.0,0.00014804,2]
[424366109,1780788645000,-442.77574995,0.00014805,2]
[424366125,1780788645000,-150.0,0.00014858,2]
[424366117,1780788645000,-442.77574995,0.0001482,2]
[424366113,1780788645000,-350.0,0.0001481,2]
[424366111,1780788645000,-500.0,0.00014807,2]
[424366115,1780788645000,-150.0,0.00014815,2]
[424366116,1780788645000,-150.0,0.0001482,2]
[424366129,1780788645000,-150.0,0.00014877,2]
[424366120,1780788645000,-150.0,0.00014836,2]
[424366130,1780788645000,-150.0,0.00014879,2]
[424366131,1780788645000,-442.77574995,0.0001488,2]
[424366119,1780788645000,-442.77574995,0.00014835,2]
[424366124,1780788645000,-150.0,0.00014858,2]
[424366132,1780788645000,-150.0,0.00014882,2]
[424366121,1780788645000,-150.0,0.0001484,2]
[424366122,1780788645000,-150.0,0.00014847,2]
[424366114,1780788645000,-150.0,0.00014812,2]
[424366110,1780788645000,-150.0,0.00014806,2]
[424366163,1780788645000,-150.0,0.00014968,2]
[424366162,1780788645000,-150.0,0.00014965,2]
[424366200,1780788645000,-500.0,0.00014999,2]
[424366199,1780788645000,-500.0,0.00014998,2]
[424366198,1780788645000,-457.12873569,0.00014998,2]
[424366196,1780788645000,-500.0,0.00014998,2]
[424366207,1780788645000,-731.42,0.00014999,2]
[424366203,1780788645000,-500.0,0.00014999,2]
[424366204,1780788645000,-500.0,0.00014999,2]
[424366201,1780788645000,-500.0,0.00014999,2]
[424366202,1780788645000,-500.0,0.00014999,2]
[424366206,1780788645000,-731.42,0.00014999,2]
[424366205,1780788645000,-216.38,0.00014999,2]
[424366209,1780788645000,-731.42,0.00014999,2]
[424366220,1780788645000,-500.0,0.00014999,2]
[424366197,1780788645000,-500.0,0.00014998,2]
[424366221,1780788645000,-500.0,0.00014999,2]
[424366212,1780788645000,-731.42,0.00014999,2]
[424366213,1780788645000,-731.63133285,0.00014999,2]
[424366215,1780788645000,-500.0,0.00014999,2]
[424366219,1780788645000,-500.0,0.00014999,2]
[424366218,1780788645000,-500.0,0.00014999,2]
[424366216,1780788645000,-500.0,0.00014999,2]
[424366214,1780788645000,-500.0,0.00014999,2]
[424366217,1780788645000,-285.67310563,0.00014999,2]
[424366223,1780788645000,-500.0,0.00014999,2]
[424366222,1780788645000,-500.0,0.00014999,2]
[424366224,1780788645000,-500.0,0.00014999,2]
[424366225,1780788645000,-500.0,0.00014999,2]
[424366169,1780788645000,-158.73968764,0.00014986,2]
[424366210,1780788645000,-731.42,0.00014999,2]
[424366208,1780788645000,-731.42,0.00014999,2]
[424366211,1780788645000,-731.42,0.00014999,2]
[424366188,1780788645000,-250.0,0.0001499,2]
[424366165,1780788645000,-442.77574995,0.00014971,2]
[424366191,1780788645000,-500.0,0.00014998,2]
[424366168,1780788645000,-224.38985235,0.00014986,2]
[424366167,1780788645000,-150.0,0.00014986,2]
[424366164,1780788645000,-350.0,0.00014969,2]
[424366166,1780788645000,-736.0,0.00014984,2]
[424366170,1780788645000,-150.0,0.00014986,2]
[424366171,1780788645000,-169.15934622,0.00014986,2]
[424366175,1780788645000,-151.5407187,0.00014986,2]
[424366172,1780788645000,-203.77673036,0.00014986,2]
[424366177,1780788645000,-150.0,0.00014986,2]
[424366179,1780788645000,-152.0,0.00014989,2]
[424366173,1780788645000,-150.44031966,0.00014986,2]
[424366178,1780788645000,-442.77574995,0.00014986,2]
[424366174,1780788645000,-160.88134904,0.00014986,2]
[424366176,1780788645000,-151.41923819,0.00014986,2]
[424366190,1780788645000,-151.0,0.00014997,2]
[424366187,1780788645000,-1500.0,0.0001499,2]
[424366180,1780788645000,-150.0,0.00014989,2]
[424366186,1780788645000,-150.0,0.00014989,2]
[424366189,1780788645000,-1034.32202949,0.0001499,2]
[424366193,1780788645000,-500.0,0.00014998,2]
[424366195,1780788645000,-500.45399039,0.00014998,2]
[424366192,1780788645000,-500.0,0.00014998,2]
[424366185,1780788645000,-150.0,0.00014989,2]
[424366184,1780788645000,-150.0,0.00014989,2]
[424366183,1780788645000,-150.0,0.00014989,2]
[424366181,1780788645000,-150.0,0.00014989,2]
[424366182,1780788645000,-150.0,0.00014989,2]
[424366194,1780788645000,-603.69,0.00014998,2]
[424366272,1780788646000,-603.69,0.00014999,2]
[424366265,1780788646000,-603.69,0.00014999,2]
[424366269,1780788646000,-603.69,0.00014999,2]
[424366264,1780788646000,-603.69,0.00014999,2]
[424366261,1780788646000,-590.2761853,0.00014999,2]
[424366271,1780788646000,-603.69,0.00014999,2]
[424366262,1780788646000,-603.69,0.00014999,2]
[424366273,1780788646000,-603.69,0.00014999,2]
[424366270,1780788646000,-603.69,0.00014999,2]
[424366267,1780788646000,-603.69,0.00014999,2]
[424366263,1780788646000,-603.69,0.00014999,2]
[424366268,1780788646000,-603.69,0.00014999,2]
[424366266,1780788646000,-603.69,0.00014999,2]
[424366274,1780788646000,-603.69,0.00014999,2]
[424366299,1780788646000,-500.0,0.00014999,2]
[424366276,1780788646000,-603.69,0.00014999,2]
[424366275,1780788646000,-603.69,0.00014999,2]
[424366285,1780788646000,-557.21,0.00014999,2]
[424366287,1780788646000,-557.21,0.00014999,2]
[424366280,1780788646000,-603.69,0.00014999,2]
[424366279,1780788646000,-603.69,0.00014999,2]
[424366277,1780788646000,-603.69,0.00014999,2]
[424366281,1780788646000,-603.69,0.00014999,2]
[424366282,1780788646000,-603.87,0.00014999,2]
[424366284,1780788646000,-557.21,0.00014999,2]
[424366283,1780788646000,-557.21,0.00014999,2]
[424366286,1780788646000,-557.21,0.00014999,2]
[424366289,1780788646000,-557.37,0.00014999,2]
[424366257,1780788646000,-590.05,0.00014999,2]
[424366278,1780788646000,-603.69,0.00014999,2]
[424366260,1780788646000,-590.05,0.00014999,2]
[424366230,1780788646000,-500.0,0.00014999,2]
[424366256,1780788646000,-590.05,0.00014999,2]
[424366228,1780788646000,-500.0,0.00014999,2]
[424366227,1780788646000,-500.0,0.00014999,2]
[424366232,1780788646000,-2838.31,0.00014999,2]
[424366300,1780788646000,-500.0,0.00014999,2]
[424366233,1780788646000,-2838.31,0.00014999,2]
[424366229,1780788646000,-500.0,0.00014999,2]
[424366226,1780788646000,-500.0,0.00014999,2]
[424366234,1780788646000,-2838.31,0.00014999,2]
[424366238,1780788646000,-2838.37641027,0.00014999,2]
[424366236,1780788646000,-2838.31,0.00014999,2]
[424366240,1780788646000,-500.0,0.00014999,2]
[424366243,1780788646000,-500.0,0.00014999,2]
[424366239,1780788646000,-500.0,0.00014999,2]
[424366241,1780788646000,-500.0,0.00014999,2]
[424366254,1780788646000,-590.05,0.00014999,2]
[424366237,1780788646000,-2838.31,0.00014999,2]
[424366242,1780788646000,-500.0,0.00014999,2]
[424366246,1780788646000,-560.57,0.00014999,2]
[424366244,1780788646000,-500.0,0.00014999,2]
[424366245,1780788646000,-488.25619644,0.00014999,2]
[424366247,1780788646000,-560.57,0.00014999,2]
[424366259,1780788646000,-590.05,0.00014999,2]
[424366249,1780788646000,-560.57,0.00014999,2]
[424366251,1780788646000,-560.57,0.00014999,2]
[424366252,1780788646000,-560.57,0.00014999,2]
[424366248,1780788646000,-560.57,0.00014999,2]
[424366250,1780788646000,-560.57,0.00014999,2]
[424366255,1780788646000,-590.05,0.00014999,2]
[424366258,1780788646000,-590.05,0.00014999,2]
[424366253,1780788646000,-560.7733412,0.00014999,2]
[424366235,1780788646000,-2838.31,0.00014999,2]
[424366288,1780788646000,-557.21,0.00014999,2]
[424366231,1780788646000,-563.26445173,0.00014999,2]
[424366291,1780788646000,-500.0,0.00014999,2]
[424366330,1780788646000,-556.45,0.00014999,2]
[424366331,1780788646000,-556.45,0.00014999,2]
[424366341,1780788646000,-500.0,0.00014999,2]
[424366333,1780788646000,-556.45,0.00014999,2]
[424366332,1780788646000,-556.45,0.00014999,2]
[424366335,1780788646000,-556.45,0.00014999,2]
[424366334,1780788646000,-556.45,0.00014999,2]
[424366336,1780788646000,-556.45,0.00014999,2]
[424366338,1780788646000,-500.0,0.00014999,2]
[424366339,1780788646000,-500.0,0.00014999,2]
[424366343,1780788646000,-500.0,0.00014999,2]
[424366340,1780788646000,-500.0,0.00014999,2]
[424366337,1780788646000,-556.60476326,0.00014999,2]
[424366345,1780788646000,-500.0,0.00014999,2]
[424366327,1780788646000,-607.97,0.00014999,2]
[424366355,1780788646000,-500.0,0.00014999,2]
[424366346,1780788646000,-500.0,0.00014999,2]
[424366344,1780788646000,-500.0,0.00014999,2]
[424366347,1780788646000,-500.0,0.00014999,2]
[424366348,1780788646000,-500.0,0.00014999,2]
[424366351,1780788646000,-500.0,0.00014999,2]
[424366349,1780788646000,-500.0,0.00014999,2]
[424366350,1780788646000,-500.0,0.00014999,2]
[424366354,1780788646000,-500.0,0.00014999,2]
[424366352,1780788646000,-500.0,0.00014999,2]
[424366353,1780788646000,-500.0,0.00014999,2]
[424366357,1780788646000,-300.0,0.00014999,2]
[424366358,1780788646000,-666.0,0.00014999,2]
[424366359,1780788646000,-300.0,0.00014999,2]
[424366301,1780788646000,-500.0,0.00014999,2]
[424366356,1780788646000,-153.60344752,0.00014999,2]
[424366325,1780788646000,-257.3388504,0.00014999,2]
[424366342,1780788646000,-500.0,0.00014999,2]
[424366326,1780788646000,-500.0,0.00014999,2]
[424366294,1780788646000,-500.0,0.00014999,2]
[424366322,1780788646000,-500.0,0.00014999,2]
[424366297,1780788646000,-500.0,0.00014999,2]
[424366292,1780788646000,-500.0,0.00014999,2]
[424366298,1780788646000,-500.0,0.00014999,2]
[424366293,1780788646000,-500.0,0.00014999,2]
[424366295,1780788646000,-500.0,0.00014999,2]
[424366296,1780788646000,-500.0,0.00014999,2]
[424366302,1780788646000,-500.0,0.00014999,2]
[424366316,1780788646000,-601.58052418,0.00014999,2]
[424366305,1780788646000,-500.0,0.00014999,2]
[424366304,1780788646000,-500.0,0.00014999,2]
[424366306,1780788646000,-323.0,0.00014999,2]
[424366308,1780788646000,-601.48,0.00014999,2]
[424366313,1780788646000,-601.48,0.00014999,2]
[424366290,1780788646000,-456.53966443,0.00014999,2]
[424366303,1780788646000,-500.0,0.00014999,2]
[424366314,1780788646000,-601.48,0.00014999,2]
[424366323,1780788646000,-500.0,0.00014999,2]
[424366319,1780788646000,-500.0,0.00014999,2]
[424366317,1780788646000,-500.0,0.00014999,2]
[424366320,1780788646000,-500.0,0.00014999,2]
[424366329,1780788646000,-151.0,0.00014999,2]
[424366324,1780788646000,-500.0,0.00014999,2]
[424366318,1780788646000,-500.0,0.00014999,2]
[424366310,1780788646000,-601.48,0.00014999,2]
[424366311,1780788646000,-601.48,0.00014999,2]
[424366315,1780788646000,-601.48,0.00014999,2]
[424366312,1780788646000,-601.48,0.00014999,2]
[424366321,1780788646000,-500.0,0.00014999,2]
[424366328,1780788646000,-151.0,0.00014999,2]
[424366367,1780788647000,-279.562946,0.00013393,2]
[424366366,1780788647000,-1627.30935883,0.00015,2]
[424366365,1780788647000,-12421727.50615977,0.00015,2]
[424366360,1780788647000,-300.0,0.00014999,2]
[424366362,1780788647000,-4413372.67656448,0.00015,2]
[424366364,1780788647000,-351.77766535,0.00015,2]
[424366361,1780788647000,-666.0,0.00014999,2]
[424366370,1780788647000,-166.66,0.00013836,2]
[424366363,1780788647000,-428.80272023,0.00015,2]
[424366368,1780788647000,-278.1554917,0.00013698,2]
[424366373,1780788647000,-166.66,0.00014247,2]
[424366371,1780788647000,-166.66,0.00013973,2]
[424366369,1780788647000,-166.66,0.00013699,2]
[424366380,1780788647000,-290.0309076,0.00012327,2]
[424366379,1780788647000,-278.1554917,0.000149,2]
[424366378,1780788647000,-220.08374135,0.000149,2]
[424366381,1780788647000,-165.9690924,0.00013698,2]
[424366376,1780788647000,152.0,0.00028034,120]
[424366374,1780788647000,-166.66,0.00014384,2]
[424366372,1780788647000,-166.66,0.0001411,2]
[424366375,1780788647000,-942.6467746,0.000149,2]
[424366377,1780788647000,-189.80615,0.00013459,2]
[424366385,1780788918000,281.2612502,0.00028391,120]
[424366386,1780789243000,943.7,0.0003013,120]
[424366391,1780789741000,2000.0,0.00030129,120]
[424366400,1780789831000,-150.64131538,0.00012375,2]
[424366396,1780789831000,-486.90471485,0.0001182,2]
[424366397,1780789831000,-200.89797828,0.0001182,2]
[424366398,1780789831000,-383.90157277,0.00012329,2]
[424366399,1780789831000,-151.12691574,0.00012329,2]
[424366403,1780789831000,-254.85076888,0.00012507,2]
[424366402,1780789831000,-65.27323112,0.00012426,2]
[424366401,1780789831000,-85.33676888,0.00012426,2]
[424366406,1780789831000,-3382.60498281,0.00012507,2]
[424366405,1780789831000,-1123.87676034,0.00012507,2]
[424366404,1780789831000,-546.276,0.00012507,2]
[424366428,1780789837000,-150.0,0.00013074,2]
[424366429,1780789837000,-451.0,0.00013075,2]